Cogmind - Beta 13 @@@ ROGUE MODE // 2024.04.24 @ 22:53:58 Player: Jason Result: Destroyed by S-10 Pest with Light Assault Rifle Performance ------------- Evolutions (0) 0 Regions Visited (1) 200 Robots Destroyed (13) 65 Value Destroyed (318) 318 Prototype IDs (0) 0 Alien Tech Used (0) 0 Bonus (0) 0 TOTAL SCORE: 583 Bonus ------- None Cogmind --------- Core Integrity 0/250 Matter 278/300 Energy 124/125 System Corruption 1% Temperature Cool (0) Movement Walking (190) Ox1 Location -10/Materials Parts ------- > --- POWER (1) -------- Light Ion Engine > --- PROPULSION (2) --- Aluminum Leg > --- UTILITY (2) ------ Medium Storage Unit Seismic Detector > --- WEAPON (2) ------- Light Assault Rifle > --- INVENTORY (10) --- Light Ion Engine Light Ion Engine Medium Matter Pod (100) Visual Processing Unit Terrain Scanner ECM Suite Hardened Light Armor Plating Tractor Beam Small Laser Light Assault Rifle Peak State ------------ > --- POWER ------------ Light Ion Engine > --- PROPULSION ------- Aluminum Leg Aluminum Leg > --- UTILITY ---------- Medium Storage Unit Seismic Detector > --- WEAPON ----------- EM Pulse Gun Light Assault Rifle > --- INVENTORY -------- Light Ion Engine Light Ion Engine Medium Matter Pod Visual Processing Unit Terrain Scanner ECM Suite Tractor Beam Small Laser Light Assault Rifle [Rating: 8] Favorites ----------- Power Light Ion Engine Engine Light Ion Engine Propulsion Aluminum Leg Leg Aluminum Leg Utility Seismic Detector Device Seismic Detector Storage Medium Storage Unit Weapon Light Assault Rifle Energy Gun Medium Laser Ballistic Gun Light Assault Rifle Build | -11 -10 ------- Run | Yrd Mat Slots Evolved . | . . Power . | . . Propulsion . | . . Utility . | . . Weapon . | . . Parts Attached 18 | 6 12 Power 3 | 1 2 Engine 3 | 1 2 Core . | . . Reactor . | . . Propulsion 6 | 2 4 Treads . | . . Leg 6 | 2 4 Wheel . | . . Hover . | . . Flight . | . . Utility 4 | 1 3 Device 2 | . 2 Storage 2 | 1 1 Processor . | . . Hackware . | . . Protection . | . . Artifact . | . . Weapon 5 | 2 3 Energy Gun 2 | 1 1 Energy Cannon . | . . Ballistic Gun 3 | 1 2 Ballistic Cannon . | . . Launcher . | . . Special Weapon . | . . Impact Weapon . | . . Slashing Weapon . | . . Piercing Weapon . | . . Special Melee Weapon . | . . Unidentified Prototypes . | . . Parts Lost 2 | . 2 Power . | . . Propulsion 1 | . 1 Utility . | . . Weapon 1 | . 1 Highest Loss Streak 1 | . 1 To Critical Strikes . | . . Average Slot Usage (%) 95 | . 95 Engine 14 | . 14 Leg 27 | . 27 Device 11 | . 11 Storage 14 | . 14 Energy Gun 12 | . 12 Ballistic Gun 14 | . 14 Naked Turns . | . . Heaviest Build 17 | 11 17 Greatest Support 20 | 20 20 Greatest Overweight (x) 4 | 2 4 Average Overweight (x) . | . . Largest Inventory Capacity 10 | 8 10 Average Capacity 9 | 7 9 Most Carried 10 | 2 10 Average Carried 5 | 1 6 Final Capacity 10 | 8 10 Final Carried 10 | 2 10 Class Distribution -------------------- 100% | Mutant Dominant Class ---------------- Mutant | -10/Materials Resources | -11 -10 ----------- Run | Yrd Mat Matter Collected 506 | 196 310 Remotely . | . . Salvage Created 418 | . 418 Parts 26 | . 26 Haulers Intercepted . | . . Recyclers Shooed . | . . Parts Field Recycled . | . . Retrieved Matter . | . . Parts Self-Destructed . | . . Prevented . | . . Kills | -11 -10 ------- Run | Yrd Mat Combat Hostiles Destroyed 10 | . 10 Guns 10 | . 10 Classes Destroyed 5 | . 5 Builder 1 | . 1 Recycler 1 | . 1 Watcher 1 | . 1 Swarmer 3 | . 3 Grunt 7 | . 7 Best Kill Streak 3 | . 3 Combat Bots Only 3 | . 3 Max Kills in Single Turn 1 | . 1 Gunslinging . | . . Exploded . | . . Melee . | . . Uniques/NPCs Destroyed . | . . Combat | -11 -10 -------- Run | Yrd Mat Hostile Shots Fired 93 | . 93 Missed 30 | . 30 Damage Taken 708 | . 708 Core 254 | . 254 Absorbed by Shields . | . . Core Remaining (%) 100 | 100 . Volleys Fired 68 | 1 67 Largest 2 | 1 2 Hottest 70 | 20 70 Shots Fired 115 | 1 114 Gun 115 | 1 114 Cannon . | . . Launcher . | . . Special . | . . Kinetic 68 | 1 67 Thermal 26 | . 26 Explosive . | . . Electromagnetic 21 | . 21 Robot Hit Streak 11 | . 11 Robot Miss Streak 6 | 1 6 Penetration Max . | . . Secondary Targets 1 | . 1 Max Gunslinging Chain 1 | . 1 Shots Hit Robots 57 | . 57 Core Hits 25 | . 25 Critical Kills . | . . Critical Parts Destroyed . | . . Critical Strikes 3 | . 3 Burn 3 | . 3 Melee Attacks . | . . Impact . | . . Slashing . | . . Piercing . | . . Sneak Attacks . | . . Combat Hostiles . | . . Follow-up Attacks . | . . Damage Inflicted 608 | . 608 Guns 596 | . 596 Cannons . | . . Explosions . | . . Melee . | . . Ramming 12 | . 12 Kinetic 256 | . 256 Thermal 269 | . 269 Explosive . | . . Electromagnetic 71 | . 71 Impact . | . . Slashing . | . . Piercing . | . . Highest Corruption 1 | . 1 Average Corruption 1 | . 1 Corruption Purged . | . . Corruption Blocked . | . . Effects 3 | . 3 Message Errors 1 | . 1 Energy Discharges 1 | . 1 Data Loss (minor) 1 | . 1 Overload Shots . | . . Overflow Damage . | . . Projectiles . | . . Explosions . | . . Melee . | . . Knockbacks . | . . Impact . | . . Kinetic . | . . Secondary . | . . Self-Inflicted Damage . | . . Shots . | . . Rammed . | . . Targets Rammed 1 | . 1 Kicked 1 | . 1 Crushed . | . . Highest Temperature 218 | . 218 Average Temperature 58 | . 58 Received Heat Transfer 327 | . 327 Siege Activations . | . . Robots Corrupted . | . . Combat Hostiles . | . . Parts Fried . | . . Impact Corruptions . | . . Robots Melted . | . . Combat Hostiles . | . . Parts Melted 1 | . 1 Heat Transferred 999 | . 999 Parts Sabotaged . | . . Parts Stolen . | . . Parts Stripped . | . . Power Chain Reactions . | . . Alert | -11 -10 ------- Run | Yrd Mat Peak Influence 185 | . 185 Initial . | . . Average 44 | . 53 Maximum Alert Level . | . . Low Security (%) 100 | 100 100 Level 1 . | . . Level 2 . | . . Level 3 . | . . Level 4 . | . . Level 5 . | . . High Security . | . . Max Security . | . . Squads Dispatched 4 | . 4 Investigation 1 | . 1 Extermination . | . . Reinforcement 3 | . 3 Assault . | . . Garrison . | . . Intercept . | . . Searches Triggered . | . . Construction Impeded . | . . Haulers Reinforced . | . . Active Scanning Responses . | . . Cargo Convoy Interrupts . | . . Stealth | -11 -10 --------- Run | Yrd Mat Distress Signals 3 | . 3 Communications Jammed . | . . Distress Signals . | . . Times Spotted 28 | . 28 Peak Tracking Total 6 | . 6 Tactical Retreats 4 | . 4 Traps | -11 -10 ------- Run | Yrd Mat Traps Triggered 6 | . 6 Indirectly . | . . Trap Hack Attempts . | . . Triggered . | . . Disarmed . | . . Reprogrammed . | . . Reused . | . . Traps Extracted . | . . Installed . | . . Triggered . | . . Machines | -11 -10 ---------- Run | Yrd Mat Machines Disabled 1 | . 1 Max in Single Turn 1 | . 1 Machines Repaired . | . . Machines Dismantled . | . . Machines Sabotaged . | . . Overloaded Fab Kills . | . . Hacking | -11 -10 --------- Run | Yrd Mat Machines Accessed 4 | . 4 Terminals 2 | . 2 Fabricators . | . . Repair Stations . | . . Recycling Units 2 | . 2 Scanalyzers . | . . Garrison Access . | . . Total Hacks 16 | . 16 Successful 4 | . 4 Failed 12 | . 12 Catastrophic 2 | . 2 Database Lockouts . | . . Manual . | . . Terminals 7 | . 7 Fabricators . | . . Repair Stations . | . . Recycling Units 9 | . 9 Scanalyzers . | . . Garrison Access . | . . Terminal Hacks . | . . Fabricator Hacks . | . . Repair Station Hacks . | . . Recycling Unit Hacks 4 | . 4 Process 1 | . 1 Report Inventory 1 | . 1 Retrieve Matter 2 | . 2 Scanalyzer . | . . Garrison Access Hacks . | . . Unauthorized Hacks . | . . Terminals . | . . Fabricators . | . . Repair Stations . | . . Recycling Units . | . . Scanalyzers . | . . Garrison Access . | . . Data Cores Recovered . | . . Used . | . . Hacking Detections 4 | . 4 Full Trace Events 2 | . 2 Feedback Events . | . . Feedback Blocked . | . . Robot Schematics Acquired . | . . Robots Built . | . . Authchips . | . . Time . | . . Total Robot Build Rating . | . . Part Schematics Acquired . | . . Parts Built . | . . Authchips . | . . Time . | . . Total Part Build Rating . | . . Parts Repaired . | . . Time . | . . Parts Recycled . | . . Recycled Matter 8 | . 8 Retrieved Matter 8 | . 8 Retrieved Components . | . . Parts Scanalyzed . | . . Part Schematics Acquired . | . . Parts Damaged . | . . Bothacking | -11 -10 ------------ Run | Yrd Mat Used RIF Installer . | . . Robots Hacked . | . . Non-combat . | . . Combat . | . . Robot Hacks Applied . | . . Relay Couplers Released . | . . Fabnet Peak Effective % . | . . Robots Rewired . | . . Allies Hacked . | . . Hacks Repelled . | . . Allies | -11 -10 -------- Run | Yrd Mat Total Allies . | . . Largest Group . | . . Highest-Rated Group . | . . Highest-Rated Ally . | . . Total Orders . | . . Ally Attacks . | . . Total Damage . | . . Kills . | . . Allies Corrupted . | . . Allies Melted . | . . Intel | -11 -10 ------- Run | Yrd Mat Robot Analysis Total . | . . Derelict Logs Recovered . | . . Drone Launches . | . . Drone Recoveries . | . . Exploration | -11 -10 ------------- Run | Yrd Mat Turns Passed 1420 | 246 1174 Spaces Moved 942 | 193 749 Core 37 | 33 4 Treads . | . . Legs 905 | 160 745 Wheels . | . . Hover . | . . Flight . | . . Fastest Speed 50 | 50 120 Average Speed 122 | 120 122 Slowest Speed 250 | 150 250 Overloaded Moves . | . . Propulsion Burnouts . | . . Robots Hopped . | . . Cave-ins Triggered . | . . Exploration Rate (%) 45 | 8 83 Regions Visited 1 Branch Regions . Pre-discovered Areas . | . . Known Exits Taken . | . . Unknown Exits Taken 1 | 1 . Scrap Searched . | . . Spaces Dug . | . . Terrain Destroyed . | . . Melee . | . . Projectile . | . . AOE . | . . Terrain Rammed . | . . Walls Destroyed . | . . Machines Disabled . | . . Actions | -11 -10 --------- Run | Yrd Mat Total 1105 | 201 904 Wait 64 | . 64 Move 941 | 192 749 Hop . | . . Pick Up 9 | 2 7 Fast Attach 14 | 6 8 Attach . | . . Detach . | . . Swap 4 | . 4 Drop 4 | . 4 Fire 68 | 1 67 Melee . | . . Ram . | . . Kick 1 | . 1 Crush . | . . Escape Stasis . | . . Rewire . | . . Trap . | . . Miscellaneous . | . . Route ------- -11/Scrapyard -10/Materials (discovered 4 exits: [*Mat x3] / [*Min]) History --------- Turn | Location | Event 25 | -11/Scrapyard | Discovered new exit (range 15) 247 | -11/Scrapyard | Entered Materials 305 | -10/Materials | Build established: Mutant 487 | -10/Materials | Discovered new exit (range 11) 641 | -10/Materials | Discovered new exit (range 8) 731 | -10/Materials | Core integrity fell below 50% 931 | -10/Materials | Discovered new exit (range 16) 1222 | -10/Materials | Core integrity fell below 20% 1376 | -10/Materials | Discovered new exit (range 16) 1421 | -10/Materials | Destroyed by S-10 Pest with Light Assault Rifle Last Messages --------------- 01340_ R-06 Scavenger collects Aluminum Leg. 01341_ Acquired 31 matter. 01350_ R-06 Scavenger destroyed. 01361_ Acquired 22 matter. 01365_ Acquired Aluminum Leg. 01367_ Acquired 10 matter. 01376_ EXIT=FOUND 01379_ Terminal unresponsive. 01386_ Triggered Blade Trap. 01386_ Massive razor-sharp blades shoot up from within the floor. 01386_ Aluminum Leg severed. 01398_ Acquired Aluminum Leg. 01402_ Triggered Blade Trap. 01402_ Massive razor-sharp blades shoot up from within the floor. 01402_ Aluminum Leg severed. 01407_ Acquired Aluminum Leg. 01415_ W-16 Scout sends out distress signal. 01417_ Aluminum Leg destroyed. Map ----- +----------------------------------------------------+ | ??????????????????????????????????? | | #####?????????????????????????????? | | #?????????????????????????????? | | #?????????????????????????????? | | #?????????????????????????????? | | #?????????????????????????????? | | #?????????????????????????????? | | ######?????????????????????????? | | # #?????????????????????????? | | # ##?????????????????????????? | | #?????????????????????????? | | # ##?????????????????????????? | | # #??????????????????????????? | | #####?????????????????#####????? | | #+#####??????????????????# #????? | | #??????????????????# < #????? | | #??????????????????# #????? | | #??????????????????# #????? | | #??????????????????# #????? | | #??????????????????# #????? | | #??????????????????# #????? | | #??????????????????# #????? | | #??????????????????# #????? | | #######??????????????????# ^^#????? | | ??????????????????##+##### #????? | | ??????????????????# ss@ #????? | | ??????????????????+ s ###??? | | ##???#######??????# """ ""#??? | | #####| #? ????# w """ ""#??? | | # ""??# """ T"#??? | | % # """ # """ ""#??? | | # + """ ""#??? | | "##### #??????# %! ###??? | | "#???## ##??????# #????? | | "#????# #???????# """ #????? | | ##????# #???????# "" #????? | | ??????# #???????# """ #????? | | ?????# #???????#! """ ! #????? | | ?### ######### """ +????? | | # [ #????? | | + #????? | | ? ??# ^ +????? | | ? ??####+###########+##### ###????? | | ? ???# * [#??????????????# #??????? | | ? ???# = #??????????????# #??????? | | #/#??# #??????????????? ???????? | | # #??# #??????????????? ???????? | | # #??# #??????????????? ???????? | | # #??# #??????????????? ???????? | | # #??# =#???????????????????????? | +----------------------------------------------------+ Best States ------------- Heat Dissipation 25 Energy Generation 10 Energy Capacity 125 Matter Stores 300 Matter Capacity 300 Sight Range 16 Terrain Scan Density 10 Evasion (%) 55 Item Schematics ----------------- None Robot Schematics ------------------ None Fabricated ------------ Nothing Alien Tech Used ----------------- None Achievements -------------- None Challenges ------------ None Game ------ Seed PulseSurgeProtection Manual? 0 Play Time 00:22:02 Cumulative 29.1 hours Start 2024.04.24 @ 21:29:44 End 2024.04.24 @ 22:53:58 Sessions 1 Manual Loads 0 Difficulty Rogue Special Mode None Game No. 26 Rogue 26 Adventurer 0 Explorer 0 Win Type - Total 0 Types 0/0/0/0/0/0/0/0/0 Lore% 14 Gallery% 23 Achievement% 17 Wizard Run 0 Options --------- Layout 1 ASCII 0 Keyboard 0 Movement Mouse Keybinds 0 Fullscreen 2 Font 24/Smallcaps Map View 50x35 Zoom Use 0% Tactical HUD 1 Map Filters NONE Filters NONE Steam 1 RUN: 8157647f-588c-4a80-8d7c-a39cabddb2c0